Cogmind - Beta 16 --- EXPLORER MODE // 2025.11.21 @ 16:23:13 Player: K.K.Y. Result: Destroyed by P-60 Hacker with Shock Rifle Performance ------------- Evolutions (0) 0 Regions Visited (4) 800 Robots Destroyed (64) 320 Value Destroyed (1410) 1410 Prototype IDs (18) 360 Alien Tech Used (0) 0 Bonus (25) 25 TOTAL SCORE: 2915 Bonus ------- Follower Combat Kills 25 Cogmind --------- Core Integrity 0/250 Matter 265/300 Energy 100/100 System Corruption 0% Temperature Warm (165) Movement Treading (320) Ox2 Location -9/Recycling Parts ------- > --- POWER (1) -------- (None) > --- PROPULSION (2) --- Light Treads > --- UTILITY (3) ------ High-capacity Storage Unit Machine Analyzer Improved Terrain Scanner > --- WEAPON (2) ------- Barrage Gun Battle Cannon > --- INVENTORY (20) --- Humpback Humpback Subdweller Optics Experimental Sensor Array Terrain Scan Processor Salvage Targeting Computer Core Shielding Scrap Shield Subdweller Laser Subdweller Laser Subdweller Beam Cannon Subdweller Beam Cannon Battle Cannon Missile Launcher Mining Laser Multitool Plasma Flamer Peak State ------------ > --- POWER ------------ Makeshift Power Source > --- PROPULSION ------- Light Treads Light Treads > --- UTILITY ---------- High-capacity Storage Unit Machine Analyzer Improved Terrain Scanner > --- WEAPON ----------- Heavy Particle Cannon Barrage Gun > --- INVENTORY -------- Humpback Humpback Subdweller Optics Experimental Sensor Array Terrain Scanner Terrain Scan Processor Salvage Targeting Computer Core Shielding Scrap Shield Subdweller Laser Subdweller Laser Subdweller Laser Subdweller Beam Cannon Subdweller Beam Cannon Missile Launcher Mining Laser Plasma Flamer [Rating: 23] Favorites ----------- Power Makeshift Power Source Engine Makeshift Power Source Propulsion Light Treads Treads Light Treads Utility Machine Analyzer Device Improved Terrain Scanner Storage High-capacity Storage Unit Processor Machine Analyzer Weapon Barrage Gun Energy Gun EM Pulse Gun Energy Cannon Heavy Particle Cannon Ballistic Gun Barrage Gun Ballistic Cannon Battle Cannon Special Weapon Welding Torch Build | -11 -10 -10 -10 -9 ------- Run | Yrd Mat Min Sub Rec Slots Evolved 1 | . 1 . . . Power . | . . . . . Propulsion . | . . . . . Utility 1 | . 1 . . . Weapon . | . . . . . Parts Attached 26 | 6 3 2 14 1 Power 5 | 1 . . 4 . Engine 5 | 1 . . 4 . Core . | . . . . . Reactor . | . . . . . Propulsion 6 | 2 . 1 2 1 Treads 6 | 2 . 1 2 1 Leg . | . . . . . Wheel . | . . . . . Hover . | . . . . . Flight . | . . . . . Utility 6 | 1 1 1 3 . Device 3 | . . . 3 . Storage 2 | 1 . 1 . . Processor 1 | . 1 . . . Hackware . | . . . . . Protection . | . . . . . Artifact . | . . . . . Weapon 9 | 2 2 . 5 . Energy Gun 1 | 1 . . . . Energy Cannon 1 | . . . 1 . Ballistic Gun 4 | 1 . . 3 . Ballistic Cannon 2 | . 1 . 1 . Launcher . | . . . . . Special Weapon 1 | . 1 . . . Impact Weapon . | . . . . . Slashing Weapon . | . . . . . Piercing Weapon . | . . . . . Special Melee Weapon . | . . . . . Unidentified Prototypes 1 | . . . 1 . Parts Lost 5 | . . . 3 2 Power 2 | . . . 1 1 Propulsion 3 | . . . 2 1 Utility . | . . . . . Weapon . | . . . . . Highest Loss Streak 2 | . . . 1 2 To Critical Strikes . | . . . . . Average Backups 15 | 3 6 11 16 17 Power . | . . . . . Propulsion . | 1 . 1 . . Utility 7 | 1 4 5 8 8 Weapon 6 | . 1 5 7 8 Tool/Special . | . . . . . Unused Backups 28 | . 1 3 8 16 Power 2 | . 1 1 . . Propulsion . | . . . . . Utility 11 | . . 1 3 7 Weapon 14 | . . 1 5 8 Tool/Special 1 | . . . . 1 Average Slot Usage (%) 87 | . 72 87 88 98 Engine 11 | . 12 12 11 12 Treads 18 | . 25 25 16 23 Device 7 | . . . 9 12 Storage 12 | . 12 12 12 12 Processor 11 | . . 12 12 12 Energy Cannon 3 | . . . 5 . Ballistic Gun 12 | . 12 12 12 12 Ballistic Cannon 7 | . . 12 6 12 Peak Build Rating 23 | 6 10 12 23 22 Average Rating 17 | 1 6 11 19 21 On Entrance 9 | . 6 10 12 21 Avg Prop Armor Cover (%) . | . . . . . Naked Turns . | . . . . . Heaviest Build 58 | 19 20 50 58 51 Greatest Support 40 | 40 40 40 40 40 Greatest Overweight (x) 2 | 1 . 1 2 2 Average Overweight (x) 1 | . . . 1 1 Largest Inventory Capacity 20 | 10 10 20 20 20 Average Capacity 18 | 5 10 18 20 20 Most Carried 20 | 5 10 14 20 20 Average Carried 17 | 4 6 11 19 20 Final Capacity 20 | 10 10 20 20 20 Final Carried 20 | 1 10 14 20 20 Class Distribution -------------------- 96% | Hacker-Mutant 3% | Scavenger-Mutant Dominant Class ---------------- Hacker-Mutant | -10/Materials Hacker-Mutant | -10/Mines Hacker-Mutant | -10/Subcaves Scavenger-Mutant | -9/Recycling Resources | -11 -10 -10 -10 -9 ----------- Run | Yrd Mat Min Sub Rec Matter Collected 1699 | 207 210 160 915 207 Remotely . | . . . . . Salvage Created 2638 | . 677 195 896 870 Parts 151 | . 50 11 52 38 Haulers Intercepted 2 | . 2 . . . Recyclers Shooed 4 | . . . . 4 Parts Field Recycled . | . . . . . Retrieved Matter . | . . . . . Parts Self-Destructed . | . . . . . Prevented . | . . . . . Parts Restored . | . . . . . Kills | -11 -10 -10 -10 -9 ------- Run | Yrd Mat Min Sub Rec Combat Hostiles Destroyed 33 | . 9 1 20 3 Guns 18 | . 6 1 8 3 Cannons 12 | . . . 12 . AOE 3 | . 3 . . . Classes Destroyed 12 | . 9 . 3 . Worker 3 | . 3 . . . Builder 1 | . 1 . . . Tunneler 5 | . 1 4 . . Hauler 2 | . 2 . . . Recycler 14 | . 2 1 . 11 Mechanic 1 | . 1 . . . Turret 2 | . . . 2 . Watcher 3 | . 3 . . . Swarmer 6 | . 4 . 1 1 Grunt 9 | . 5 1 2 1 Sentry 2 | . . . 1 1 Subdweller 16 | . . . 16 . Best Kill Streak 6 | . 4 2 3 6 Combat Bots Only 3 | . 3 1 3 2 Max Kills in Single Turn 2 | . 2 1 1 2 Gunslinging . | . . . . . Exploded 1 | . 1 . . . Melee . | . . . . . Uniques/NPCs Destroyed . | . . . . . Combat | -11 -10 -10 -10 -9 -------- Run | Yrd Mat Min Sub Rec Hostile Shots Fired 216 | . 39 6 117 54 Missed 67 | . 10 1 38 18 Hits 149 | . 29 5 79 36 Projectile 149 | . 29 5 79 36 AOE 1 | . . . . 1 Critical Strikes 3 | . . . 1 2 Damage Taken 1504 | . 241 43 931 289 Core 250 | . 30 11 166 43 Absorbed by Shields . | . . . . . Ignored by Resistances 907 | . 157 26 542 182 Core Remaining (%) 100 | 100 . . . . Volleys Fired 218 | . 41 13 142 22 Largest 2 | . 2 2 2 2 Hottest 103 | . 60 50 103 61 Shots Fired 434 | . 78 26 286 44 Gun 257 | . 78 13 144 22 Cannon 177 | . . 13 142 22 Launcher . | . . . . . Special . | . . . . . Kinetic 287 | . 41 26 176 44 Thermal 110 | . . . 110 . Explosive . | . . . . . Electromagnetic 37 | . 37 . . . Robot Hit Streak 39 | . 23 6 39 31 Robot Miss Streak 1 | . 1 1 1 1 Penetration Max . | . . . . . Secondary Targets 1 | . 1 . . . Max Gunslinging Chain 1 | . 1 . . . Shots Hit Robots 228 | . 63 16 118 31 Core Hits 89 | . 31 9 34 15 Critical Kills 1 | . . . 1 . Critical Parts Destroyed 1 | . 1 . . . Critical Strikes 4 | . 1 1 1 1 Destroy 2 | . 1 . 1 . Blast 2 | . . 1 . 1 Melee Attacks . | . . . . . Impact . | . . . . . Slashing . | . . . . . Piercing . | . . . . . Sneak Attacks . | . . . . . Combat Hostiles . | . . . . . Follow-up Attacks . | . . . . . Damage Inflicted 4286 | . 1042 257 2349 638 Guns 2103 | . 803 116 848 336 Cannons 1921 | . . 118 1501 302 Explosions 209 | . 209 . . . Melee . | . . . . . Ramming 53 | . 30 23 . . Kinetic 2232 | . 361 234 999 638 Thermal 1559 | . 209 . 1350 . Explosive . | . . . . . Electromagnetic 442 | . 442 . . . Impact . | . . . . . Slashing . | . . . . . Piercing . | . . . . . Highest Corruption 1 | . 1 1 1 . Average Corruption 1 | . 1 1 1 . Corruption Purged 1 | . . . 1 . Corruption Blocked . | . . . . . Effects 69 | . 11 11 47 . Message Errors 18 | . 5 5 8 . Matter Fused 22 | . 2 3 17 . Heat Flow Errors 9 | . 1 2 6 . Energy Discharges 7 | . . . 7 . Parts Fused 3 | . . . 3 . Data Loss (minor) 5 | . 1 1 3 . Data Loss (major) 1 | . 1 . . . Misfires 2 | . . . 2 . Alerts 2 | . 1 . 1 . Overload Shots . | . . . . . Overflow Damage 66 | . . . 36 30 Projectiles 66 | . . . 36 30 Explosions . | . . . . . Melee . | . . . . . Knockbacks 11 | . . 2 5 4 Impact . | . . . . . Kinetic 10 | . . 2 4 4 Secondary 1 | . . . 1 . Self-Inflicted Damage . | . . . . . Shots . | . . . . . Rammed 5 | . 1 4 . . Targets Rammed 7 | . 3 4 . . Kicked . | . . . . . Crushed 2 | . 2 . . . Highest Temperature 275 | . 157 275 181 159 Average Temperature 37 | . 36 98 25 45 Received Heat Transfer 690 | . 156 39 363 132 Siege Activations . | . . . . . Martial Activations . | . . . . . Shielding Activations . | . . . . . Robots Disrupted . | . . . . . Combat Hostiles . | . . . . . Robots Corrupted . | . . . . . Combat Hostiles . | . . . . . Parts Fried 1 | . 1 . . . Impact Corruptions . | . . . . . Robots Melted . | . . . . . Combat Hostiles . | . . . . . Parts Melted 2 | . . . 2 . Heat Transferred 2148 | . 150 . 1998 . Parts Sabotaged . | . . . . . Parts Stolen . | . . . . . Parts Stripped . | . . . . . Power Chain Reactions 4 | . 4 . . . Alert | -11 -10 -10 -10 -9 ------- Run | Yrd Mat Min Sub Rec Maximum Alert Level . | . . . . . Low Security (%) 100 | 100 100 100 . 100 Level 1 . | . . . . . Level 2 . | . . . . . Level 3 . | . . . . . Level 4 . | . . . . . Level 5 . | . . . . . High Security . | . . . . . Max Security . | . . . . . Peak Influence 89 | . 89 56 . 30 Initial . | . . . . . Average 4 | . 9 1 . 2 Influence Increases 700 | . 339 81 160 120 Destroy 0b10 Robot/C 400 | . 180 40 120 60 Destroy 0b10 Robot/NC 145 | . 65 25 . 55 Destroy Leader 70 | . 50 10 10 . Allied During Kill 2 | . . 2 . . Successful Hack 14 | . 11 . . 3 Disable Machine 4 | . . 4 . . Destroy Structure 20 | . 18 . . 2 Lose Combat Pursuer 45 | . 15 . 30 . Influence Decreases 684 | . 339 81 160 104 Time Decay 674 | . 339 81 160 94 Lost Part 10 | . . . . 10 Squads Dispatched 1 | . . 1 . . Investigation 1 | . . 1 . . Extermination . | . . . . . Reinforcement . | . . . . . Assault . | . . . . . Garrison . | . . . . . Intercept . | . . . . . Searches Triggered . | . . . . . Construction Impeded . | . . . . . Haulers Reinforced . | . . . . . Active Scanning Responses . | . . . . . Cargo Convoy Interrupts . | . . . . . Stealth | -11 -10 -10 -10 -9 --------- Run | Yrd Mat Min Sub Rec Distress Signals 2 | . 2 . . . Communications Jammed . | . . . . . Distress Signals . | . . . . . Times Spotted 49 | . 17 2 23 7 Peak Tracking Total 7 | . 2 2 3 7 Tactical Retreats 2 | . 1 . 1 . Traps | -11 -10 -10 -10 -9 ------- Run | Yrd Mat Min Sub Rec Traps Triggered 3 | . 2 . 1 . Indirectly . | . . . . . Trap Hack Attempts . | . . . . . Triggered . | . . . . . Disarmed 3 | . 3 . . . Reprogrammed . | . . . . . Reused . | . . . . . Traps Extracted . | . . . . . Installed . | . . . . . Triggered . | . . . . . Machines | -11 -10 -10 -10 -9 ---------- Run | Yrd Mat Min Sub Rec Machines Disabled 2 | . . 1 1 . Max in Single Turn 1 | . . 1 1 . Machines Repaired . | . . . . . Machines Dismantled . | . . . . . Machines Sabotaged . | . . . . . Overloaded Fab Kills . | . . . . . Hacking | -11 -10 -10 -10 -9 --------- Run | Yrd Mat Min Sub Rec Machines Accessed 9 | . 5 1 2 1 Terminals 6 | . 5 . . 1 Fabricators . | . . . . . Repair Stations . | . . . . . Recycling Units . | . . . . . Scanalyzers . | . . . . . Garrison Access . | . . . . . Total Hacks 24 | . 15 1 5 3 Successful 19 | . 10 1 5 3 Failed 5 | . 5 . . . Catastrophic . | . . . . . Database Lockouts . | . . . . . Manual . | . . . . . Terminals 18 | . 15 . . 3 Fabricators . | . . . . . Repair Stations . | . . . . . Recycling Units . | . . . . . Scanalyzers . | . . . . . Garrison Access . | . . . . . Terminal Hacks 19 | . 10 1 5 3 Record 4 | . . . 4 . Prototype ID Bank 3 | . 2 . . 1 Open Door 1 | . . 1 . . Locate Traps 2 | . 2 . . . Disarm Traps 1 | . 1 . . . Maintenance Status 2 | . 1 . . 1 Hauler Manifests 2 | . 1 . . 1 Registered Components 1 | . 1 . . . Zone Layout 2 | . 2 . . . Proto ID Catalog 1 | . . . 1 . Fabricator Hacks . | . . . . . Repair Station Hacks . | . . . . . Recycling Unit Hacks . | . . . . . Scanalyzer . | . . . . . Garrison Access Hacks . | . . . . . Unauthorized Hacks . | . . . . . Terminals . | . . . . . Fabricators . | . . . . . Repair Stations . | . . . . . Recycling Units . | . . . . . Scanalyzers . | . . . . . Garrison Access . | . . . . . Data Cores Recovered . | . . . . . Used . | . . . . . Hacking Detections 4 | . 3 . . 1 Full Trace Events 2 | . 2 . . . Feedback Events 1 | . 1 . . . Corruption 1 | . 1 . . . Feedback Blocked . | . . . . . Robot Schematics Acquired . | . . . . . Robots Built . | . . . . . Authchips . | . . . . . Time . | . . . . . Total Robot Build Rating . | . . . . . Part Schematics Acquired . | . . . . . Parts Built . | . . . . . Authchips . | . . . . . Time . | . . . . . Total Part Build Rating . | . . . . . Part Studies Acquired . | . . . . . Parts Repaired . | . . . . . Time . | . . . . . Parts Recycled . | . . . . . Recycled Matter . | . . . . . Retrieved Matter . | . . . . . Retrieved Components . | . . . . . Parts Scanalyzed . | . . . . . Part Schematics Acquired . | . . . . . Parts Damaged . | . . . . . Bothacking | -11 -10 -10 -10 -9 ------------ Run | Yrd Mat Min Sub Rec Used RIF Installer . | . . . . . Robots Hacked . | . . . . . Non-combat . | . . . . . Combat . | . . . . . Robot Hacks Applied . | . . . . . Relay Couplers Released . | . . . . . Fabnet Peak Effective % . | . . . . . Robots Rewired 1 | . . . . 1 Allies Hacked . | . . . . . Hacks Repelled . | . . . . . Allies | -11 -10 -10 -10 -9 -------- Run | Yrd Mat Min Sub Rec Total Allies 4 | . . 3 . 1 Largest Group 3 | . . 3 3 . Highest-Rated Group 40 | . . 40 40 . Highest-Rated Ally 16 | . . 16 16 . Total Orders . | . . . . . Ally Attacks 23 | . . 5 17 1 Total Damage 219 | . . 44 165 10 Kills 1 | . . 1 . . Allies Corrupted . | . . . . . Allies Melted . | . . . . . Intel | -11 -10 -10 -10 -9 ------- Run | Yrd Mat Min Sub Rec Active Infowar (turns) 17162 | . 107 1915 14513 627 Sensors 1 | . . . 1 . Terrain 11088 | . . . 10461 627 Machine Analysis 17162 | . 107 1915 14513 627 Robot Analysis Total . | . . . . . Derelict Logs Recovered 3 | . . 1 2 . Drone Launches . | . . . . . Drone Recoveries . | . . . . . Exploration | -11 -10 -10 -10 -9 ------------- Run | Yrd Mat Min Sub Rec Turns Passed 18642 | 45 1542 1915 14513 627 Spaces Moved 5262 | 40 865 817 3430 110 Core 39 | 39 . . . . Treads 5223 | 1 865 817 3430 110 Legs . | . . . . . Wheels . | . . . . . Hover . | . . . . . Flight . | . . . . . Fastest Speed 50 | 50 160 160 240 240 Average Speed 246 | 76 160 222 276 251 Slowest Speed 320 | 160 160 240 320 320 Overloaded Moves . | . . . . . Propulsion Burnouts . | . . . . . Robots Hopped . | . . . . . Potential Cave-ins . | . . . . . Cave-ins Triggered . | . . . . . Exploration Rate (%) 62 | 3 93 99 97 19 Regions Visited 4 Branch Regions 3 Pre-discovered Areas 2 | . . 1 1 . Known Exits Taken 4 | 1 1 1 1 . Unknown Exits Taken . | . . . . . Scrap Searched 9 | . . . 9 . Spaces Dug . | . . . . . Terrain Destroyed 20 | . 18 . . 2 Melee . | . . . . . Projectile 2 | . . . . 2 AOE 18 | . 18 . . . Terrain Rammed . | . . . . . Walls Destroyed . | . . . . . Machines Disabled . | . . . . . Actions | -11 -10 -10 -10 -9 --------- Run | Yrd Mat Min Sub Rec Total 10497 | 54 943 886 8196 418 Wait 4900 | . 19 34 4569 278 Move 5258 | 39 864 816 3429 110 Hop . | . . . . . Pick Up 45 | 5 10 10 20 . Fast Attach 9 | 4 2 . 2 1 Attach 9 | 4 . 1 4 . Detach 5 | . 1 1 3 . Swap 12 | . 1 1 10 . Drop 27 | 2 2 6 17 . Fire 218 | . 41 13 142 22 Melee . | . . . . . Ram . | . . . . . Kick . | . . . . . Crush 7 | . 3 4 . . Escape Stasis . | . . . . . Rewire 7 | . . . . 7 Trap . | . . . . . Miscellaneous . | . . . . . Route ------- -11/Scrapyard -10/Materials (discovered 4 exits: *Mat x3 / *Min) -10/Mines (discovered 4 exits: *Mat x2 / *Exi / *Sub) -10/Subcaves (discovered 3 exits: *Mat x2 / *Rec) -9/Recycling History --------- Turn | Location | Event 21 | -11/Scrapyard | Identified exit to Materials 21 | -11/Scrapyard | Discovered exit to Materials (range 15) 46 | -11/Scrapyard | Entered Materials 46 | -10/Materials | Evolved 1 slot: Utility x1 141 | -10/Materials | Identified exit to Materials 141 | -10/Materials | Discovered exit to Materials (range 7) 313 | -10/Materials | Build established: Hacker-Mutant 318 | -10/Materials | Discovered exit to Materials (range 14) 512 | -10/Materials | Discovered exit to Materials (range 16) 1559 | -10/Materials | Identified exit to Mines 1559 | -10/Materials | Discovered exit to Mines (range 13) 1588 | -10/Materials | Entered Mines 1621 | -10/Mines | Met a Derelict bent on vengeance 1625 | -10/Mines | Discovered exit to Materials (range 13) 1643 | -10/Mines | Assisted by bots powering up and referring to "LRC-V3" 1785 | -10/Mines | A weapon hastily lodged in a ceiling crevice suddenly fell to the ground 1813 | -10/Mines | Deemed a non-threat by the Exiles lab entrance 1813 | -10/Mines | Identified exit to Exiles 1813 | -10/Mines | Discovered exit to Exiles (range 5) 1879 | -10/Mines | Met a Derelict shopkeep closing up shop 2805 | -10/Mines | Found a damaged Exp. Sensor Array with a note attached 2815 | -10/Mines | Found Prototype Device 3159 | -10/Mines | Identified exit to Subcaves 3159 | -10/Mines | Discovered exit to Subcaves (range 10) 3323 | -10/Mines | Found a hidden stash of uninstalled traps 3340 | -10/Mines | Discovered exit to Materials (range 12) 3503 | -10/Mines | Entered Subcaves 3503 | -10/Subcaves | Accompanied by 3 allies 3504 | -10/Subcaves | Approached by a straggling Scientist 3552 | -10/Subcaves | Lost 3 allies 3690 | -10/Subcaves | Identified Exp. Sensor Array 3708 | -10/Subcaves | Visited 4L-MR0's lab 4570 | -10/Subcaves | Learned location of Zion (-6) 4903 | -10/Subcaves | Shifting Twisted Machinery released Piercing Trap 4908 | -10/Subcaves | Shifting Twisted Machinery released Sub. Monowheel 4999 | -10/Subcaves | Shifting Twisted Machinery released Sub. Beam Cannon 5033 | -10/Subcaves | Identified exit to Materials 5033 | -10/Subcaves | Discovered exit to Materials (range 6) 5036 | -10/Subcaves | Shifting Twisted Machinery released Enh. Flamer 5453 | -10/Subcaves | Identified exit to Recycling 5453 | -10/Subcaves | Discovered exit to Recycling (range 12) 5601 | -10/Subcaves | Core integrity fell below 50% 5609 | -10/Subcaves | Shifting Twisted Machinery released Flamer 5618 | -10/Subcaves | Shifting Twisted Machinery released Sub. Monowheel 6290 | -10/Subcaves | Visited Clippyterm 6297 | -10/Subcaves | Learned Factory fabricator intel 7616 | -10/Subcaves | A swath of the cavern ceiling suddenly collapsed 7734 | -10/Subcaves | Discovered exit to Materials (range 4) 7859 | -10/Subcaves | Ambushed by Subdwellers from Twisted Machinery 8326 | -10/Subcaves | Learned Materials emergency access door positions 8429 | -10/Subcaves | Disturbed a concealed Subdweller 9407 | -10/Subcaves | Disturbed a concealed Subdweller 9416 | -10/Subcaves | Core integrity fell below 20% 10881 | -10/Subcaves | A swath of the cavern ceiling suddenly collapsed 18016 | -10/Subcaves | Entered Recycling 18360 | -9/Recycling | Build established: Scavenger-Mutant 18643 | -9/Recycling | Destroyed by P-60 Hacker with Shock Rifle Last Messages --------------- 18623_ Y-45 Defender springs to life. 18623_ Critical hit (Burn: +37). 18623_ G-34 Mercenary springs to life. 18623_ D-53 Grenadier springs to life. 18623_ G-34 Mercenary springs to life. 18626_ Attempting to rewire K-01 Serf. 18627_ Attempting to rewire G-34 Mercenary. 18627_ G-34 Mercenary rewired. 18628_ Attempting to rewire K-01 Serf. 18628_ P-60 Hacker springs to life. 18628_ Chain reaction triggered in Ion Engine. 18628_ Mercenary 2a destroyed. 18628_ K-01 Serf destroyed. 18629_ D-53 Grenadier knocked back. 18629_ Lgt. Treads destroyed. 18631_ Y-45 Defender destroyed. 18632_ S-10 Pest destroyed. 18635_ G-34 Mercenary knocked back. 18638_ G-34 Mercenary destroyed. 18643_ Mak. Power Source destroyed. Map ----- +----------------------------------------------------+ | | | | | | | | | | | | | | | | | | | | | ?????????????????????????????????????????????????? | | ?????????????????????????????????????????????????? | | ?????????????????????#???????????????????????????? | | ?????????????????????????????????????????????????? | | ?????????????????????????????????????????????????? | | ????????????????????#????????????????#???????????? | | ????????????????#???#????????????????????????????? | | ?????????????#???#???????????????????????????????? | | ???????????????????????????????????????????????#?? | | ?????????????????????#???????????????#???????????? | | ?????????????????????????????????????????????????? | | ?????????????#?????#???##?###???????????#?#??#? ? | | ????????????????####;###;#;###????????#????#?? ?? | | ????????????????# !% l= u p#????????? ? ??##? ? | | ????????????????#r/gg[%%[% ! #???????????? ##???#+ | | ????????#######?# Y% %@%=[#???????? ? ??###?## | | ???????? + h k!s %%]#?###### ??? ?#???## | | ???????? #######+######## +? ?? ??###?# | | ??????? # ? ?? ????## | | ??????? #???? #????# | | ?????? """ +?? ####?# | | ?????? """"" #?? ? ?#?#?# | | ?????? """"" #? ? ##?#?# | | ????????#####"Y"#### """"" +? ? ?##?## | | ????????????#"""???# """ #?#?#+#?#?#### | | ??????????#?????#??# #####*######## | | ???????????????????# % !=%%=%= !% | | ???????????????????# ############### | | ???????????"""?????# # ???? ?? ? # | | ???????????"""??+ + ? ??? ? ??+ | | ???????????"""??# ### ? ? ? # | | ????????????????# #?? ? ? ?? # | | ???????????"""??+ #???#####???#??## | | ???????????"""??################ ##??#??#??#?????# | | ???????????"""????????#???????##+#???????##???#??# | | ????????????????????????????????????? ??? ?? ??# | | ????????????????????????????????????????? ?????# | | ????????????????"""?????????????????????# ? ????# | | ????????????????"T"??????????????????????? ?? #?# | | ????????????????"?"??????????????? ???## ? ?#?# | +----------------------------------------------------+ Best States ------------- Heat Dissipation 25 Energy Generation 15 Energy Capacity 250 Matter Stores 300 Matter Capacity 300 Sight Range 16 Terrain Scan Range 16 Terrain Scan Density 10 Resistance: KI 35 Resistance: TH 35 Resistance: EX 35 Resistance: EM 35 Resistance: I 35 Resistance: S 35 Resistance: P 35 Evasion (%) 50 Recoil Reduction 2 Offensive Hacking 20 Item Schematics ----------------- None Robot Schematics ------------------ None Fabricated ------------ Nothing Repaired ---------- Nothing Studied --------- None Alien Tech Used ----------------- None Achievements -------------- None Challenges ------------ None Game ------ Seed LaunchRecyclingPit Manual? 0 Play Time 01:01:19 Cumulative 131.1 hours Start 2025.11.21 @ 14:32:04 End 2025.11.21 @ 16:23:13 Sessions 1 Manual Loads 0 Difficulty Explorer Special Mode None Game No. 152 Rogue 0 Adventurer 0 Explorer 152 Win Type - Total 0 Types 0/0/0/0/0/0/0/0/0/0 Lore% 67 Gallery% 65 Achievement% 50 Wizard Run 0 Options --------- Layout 1 ASCII 0 Keyboard 0 Movement Mouse Keybinds 0 Fullscreen 1 Font 24/Smallcaps Map View 50x35 Zoom Use 0% Tactical HUD 1 Map Filters NONE Filters NONE Steam 1 RUN: dace73f4-dc15-4580-a936-257c354529b8